fUST/lending_fUST_20250425
["ID","MTS","AMOUNT","RATE_DAILY","PERIOD"]
[358877982,1745510515422,657.46565351,0.00014908,2]
[358877983,1745510540849,-195.98,0.00015007,2]
[358877984,1745510544010,-264.3595,0.00015007,2]
[358877985,1745510547755,-51.57188926,0.00015007,2]
[358877986,1745510547781,-100.42811074,0.00015007,2]
[358877987,1745510552444,-165.41572321,0.00015007,2]
[358877988,1745510557127,-152.0,0.00015006,2]
[358877989,1745510561922,-264.3595,0.00015006,2]
[358877990,1745510565091,152.0,0.00015,2]
[358877991,1745510567605,-8.97513073,0.00015006,2]
[358877992,1745510567631,-162.17484501,0.00015006,2]
[358877994,1745510574058,-108.20499207,0.00015006,2]
[358877995,1745510574080,-194.42416208,0.00015006,2]
[358877998,1745510579066,-197.37084585,0.00015006,2]
[358877999,1745510580391,435.50947574,0.00015,2]
[358878000,1745510582908,-108.20499207,0.00015006,2]
[358878001,1745510582933,-89.16585378,0.00015006,2]
[358878002,1745510595139,-228.0,0.00015005,2]
[358878003,1745510595163,-72.0,0.00015006,2]
[358878004,1745510596336,197.37084585,0.00015,2]
[358878005,1745510601380,-185.429996,0.00015006,2]
[358878006,1745510605589,-153.40415022,0.00015006,2]
[358878007,1745510605621,-365.22493327,0.00015006,2]
[358878044,1745510611536,-134.77506673,0.00015006,2]
[358878045,1745510611559,-17.22493327,0.00015006,2]
[358878046,1745510612566,704.05907949,0.00015,2]
[358878047,1745510615318,-241.08063433,0.00015006,2]
[358878048,1745510619122,-209.7753395,0.00015006,2]
[358878049,1745510627835,602.85597383,0.00015,2]
[358878050,1745510629088,-31.9190929,0.00015006,2]
[358878051,1745510629111,-197.677198,0.00015006,2]
[358878052,1745510629143,-36.54384101,0.00015006,2]
[358878053,1745510637140,-463.45615899,0.00015006,2]
[358878054,1745510637165,-2.01554058,0.00015006,2]
[358878055,1745510643805,-205.36188729,0.00015005,2]
[358878056,1745510644170,731.61183148,0.00015,2]
[358878057,1745510659085,-94.63811271,0.00015005,2]
[358878058,1745510659109,-304.0756373,0.00015006,2]
[358878059,1745510659140,-2.90121423,0.00015006,2]
[358878060,1745510659331,205.36188729,0.00015,2]
[358878061,1745510674612,-152.02078535,0.00015006,2]
[358878062,1745510674941,401.61496424,0.00015,2]
[358878067,1745510691144,152.02078535,0.00015,2]
[358878068,1745510698094,165.01155585,0.00014973,2]
[358878069,1745510704607,575.28244683,0.00014908,2]
[358878070,1745510751010,-218.53398824,0.00015005,2]
[358878071,1745510764744,-153.05344201,0.00015005,2]
[358878072,1745510769119,-231.72245123,0.00015005,2]
[358878073,1745510771917,-115.22410676,0.00015005,2]
[358878074,1745510771939,-75.31152033,0.00015005,2]
[358878075,1745510776322,-266.65206226,0.00015005,2]
[358878076,1745510781245,-158.03641741,0.00015005,2]
[358878077,1745510781270,-95.04354975,0.00015006,2]
[358878078,1745510787991,-157.46437291,0.00015006,2]
[358878079,1745510793520,-152.0,0.00015006,2]
[358878080,1745510797400,-190.53562709,0.00015006,2]
[358878081,1745510799135,-162.3195767,0.00015006,2]
[358878082,1745510801181,-229.05306563,0.00015006,2]
[358878083,1745510804578,-1017.01457896,0.00015006,2]
[358878084,1745510818374,165.01155585,0.00014941,2]
[358878085,1745510827161,-157.006,0.00015008,2]
[358878086,1745510869493,-170.60694021,0.00015005,2]
[358878087,1745510869518,-44.05874193,0.00015005,2]
[358878088,1745510874861,-208.50152978,0.00015005,2]
[358878089,1745510877992,-177.50889304,0.00015005,2]
[358878090,1745510884040,-69.93083525,0.00015005,2]
[358878113,1745511031874,-5039.35972685,0.00015999,2]
[358878115,1745511031950,-39010.31822098,0.00015999,2]
[358878116,1745511031962,-1065.21084693,0.00015999,2]
[358878117,1745511032024,-4441.93499141,0.00015999,2]
[358878118,1745511032034,-500.0,0.00015999,2]
[358878119,1745511032044,-500.0,0.00015999,2]
[358878120,1745511032054,-500.0,0.00015999,2]
[358878121,1745511032063,-500.0,0.00015999,2]
[358878122,1745511032073,-500.0,0.00015999,2]
[358878123,1745511032085,-500.0,0.00015999,2]
[358878124,1745511032100,-500.0,0.00015999,2]
[358878126,1745511032109,-500.0,0.00015999,2]
[358878128,1745511032118,-500.0,0.00015999,2]
[358878131,1745511032127,-500.0,0.00015999,2]
[358878132,1745511032136,-500.0,0.00015999,2]
[358878134,1745511032145,-500.0,0.00015999,2]
[358878136,1745511032155,-500.0,0.00015999,2]
[358878138,1745511032165,-500.0,0.00015999,2]
[358878140,1745511032175,-500.0,0.00015999,2]
[358878142,1745511032184,-500.0,0.00015999,2]
[358878144,1745511032194,-500.0,0.00015999,2]
[358878146,1745511032204,-500.0,0.00015999,2]
[358878147,1745511032215,-500.0,0.00015999,2]
[358878148,1745511032224,-500.0,0.00015999,2]
[358878149,1745511032235,-500.0,0.00015999,2]
[358878150,1745511032245,-500.0,0.00015999,2]
[358878151,1745511032254,-500.0,0.00015999,2]
[358878152,1745511032264,-500.0,0.00015999,2]
[358878153,1745511032273,-47.8977966,0.00015999,2]
[358878157,1745511037825,-452.1022034,0.00015999,2]
[358878158,1745511037835,-500.0,0.00015999,2]
[358878159,1745511037845,-240.59856348,0.00015999,2]
[358878160,1745511037887,-259.40143652,0.00015999,2]
[358878161,1745511037897,-500.0,0.00015999,2]
[358878162,1745511037906,-500.0,0.00015999,2]
[358878163,1745511037916,-500.0,0.00015999,2]
[358878164,1745511037925,-500.0,0.00015999,2]
[358878165,1745511037935,-500.0,0.00015999,2]
[358878166,1745511037945,-293.16511415,0.00015999,2]
[358878167,1745511037954,-500.0,0.00015999,2]
[358878168,1745511037964,-500.0,0.00015999,2]
[358878170,1745511037973,-500.0,0.00015999,2]
[358878171,1745511037982,-500.0,0.00015999,2]
[358878172,1745511037992,-500.0,0.00015999,2]
[358878173,1745511038002,-500.0,0.00015999,2]
[358878174,1745511038012,-5000.0,0.00016,2]
[358878175,1745511038021,-250.0,0.00016169,2]
[358878176,1745511038030,-758.0,0.00016214,2]
[358878177,1745511038039,-194.267952,0.00016287,2]
[358878178,1745511038048,-162.0252337,0.00016653,2]
[358878179,1745511038059,-1000.0,0.00017532,2]
[358878180,1745511038069,-500.0,0.00018462,2]
[358878181,1745511038078,-500.0,0.00018628,2]
[358878182,1745511038088,-1000.0,0.00018628,2]
[358878183,1745511038097,-193.11665408,0.00018732,2]
[358878184,1745511038108,-500.0,0.00018773,2]
[358878185,1745511038117,-500.0,0.00018773,2]
[358878186,1745511038127,-500.0,0.00018773,2]
[358878187,1745511038136,-402.91626145,0.00018773,2]
[358878188,1745511038146,-500.0,0.00018773,2]
[358878189,1745511038324,-500.0,0.00018773,2]
[358878190,1745511038335,-502.05283,0.00018773,2]
[358878191,1745511038344,-284.30292155,0.00018773,2]
[358878192,1745511038353,-164.52649222,0.000188,7]
[358878193,1745511038363,-370000.0,0.000188,2]
[358878194,1745511038372,-193.11665407,0.000188,2]
[358878195,1745511038382,-405.0,0.00018832,2]
[358878196,1745511038391,-403.0,0.00018832,2]
[358878197,1745511038402,-160.0,0.00018899,2]
[358878198,1745511038411,-373707.06546143,0.000189,2]
[358878199,1745511038428,-1219.75,0.000189,2]
[358878201,1745511040297,-1521.12312969,0.000189,2]
[358878202,1745511040309,-398.076,0.000189,2]
[358878204,1745511040705,-1578.52125243,0.000189,2]
[358878227,1745511043505,-538.92137713,0.00015998,2]
[358878228,1745511043517,-213.68835883,0.00015998,2]
[358878229,1745511043530,-45881.27951009,0.000189,2]
[358878230,1745511043723,-18.03550852,0.000189,2]
[358878231,1745511043742,-16478.6035974,0.000189,2]
[358878237,1745511457261,18175.0090943,0.00014798,2]
[358878238,1745511496881,2800.6306036,0.00014798,2]
[358878242,1745512080776,270.205,0.00015,2]
[358878282,1745512231944,-250.0,0.0001533,2]
[358878283,1745512231954,-158.62024876,0.0001539,2]
[358878284,1745512232049,-141.37975124,0.0001539,2]
[358878285,1745512232060,-600.0,0.0001539,2]
[358878286,1745512232069,-300.0,0.0001539,2]
[358878288,1745512232078,-500.0,0.00015391,2]
[358878289,1745512232088,-561.17663454,0.00015391,2]
[358878290,1745512232098,-500.0,0.00015391,2]
[358878291,1745512232109,-639.89150311,0.00015391,2]
[358878292,1745512232119,-500.0,0.00015391,2]
[358878293,1745512232129,-500.0,0.00015391,2]
[358878294,1745512232140,-1304.21904655,0.00015391,2]
[358878295,1745512232149,-500.0,0.00015391,2]
[358878296,1745512232158,-460.45332089,0.00015391,2]
[358878297,1745512232169,-500.0,0.00015391,2]
[358878298,1745512232183,-540.94712041,0.00015391,2]
[358878299,1745512232193,-1304.21904655,0.00015391,2]
[358878300,1745512232206,-1304.21904655,0.00015391,2]
[358878301,1745512232217,-544.0197676,0.00015391,2]
[358878302,1745512232227,-500.0,0.00015391,2]
[358878303,1745512232236,-1304.21904655,0.00015391,2]
[358878304,1745512232245,-500.0,0.00015391,2]
[358878305,1745512232254,-1304.21904655,0.00015391,2]
[358878306,1745512232263,-1304.21904655,0.00015391,2]
[358878307,1745512232274,-250.0,0.00015391,2]
[358878308,1745512232284,-1304.21904655,0.00015391,2]
[358878309,1745512232295,-1304.21904655,0.00015391,2]
[358878310,1745512232305,-1304.21904655,0.00015391,2]
[358878311,1745512232314,-1304.21904655,0.00015391,2]
[358878312,1745512232324,-1304.21904655,0.00015391,2]
[358878313,1745512232510,-1304.21904655,0.00015391,2]
[358878314,1745512232521,-1304.21904655,0.00015391,2]
[358878315,1745512232532,-1304.21904655,0.00015391,2]
[358878316,1745512232541,-1304.21904655,0.00015391,2]
[358878317,1745512232550,-1304.21904655,0.00015391,2]
[358878318,1745512232559,-1304.21904655,0.00015391,2]
[358878319,1745512232569,-1304.21904655,0.00015391,2]
[358878320,1745512232577,-1304.21904655,0.00015391,2]
[358878321,1745512232586,-1304.21904655,0.00015391,2]
[358878322,1745512232595,-1304.21904655,0.00015391,2]
[358878323,1745512232604,-1304.21904655,0.00015391,2]
[358878324,1745512232613,-1304.21904655,0.00015391,2]
[358878325,1745512232622,-1304.21904655,0.00015391,2]
[358878326,1745512232631,-1304.21904655,0.00015391,2]
[358878327,1745512232640,-1304.21904655,0.00015391,2]
[358878328,1745512232651,-1304.21904655,0.00015391,2]
[358878329,1745512232661,-1304.21904655,0.00015391,2]
[358878330,1745512232670,-1304.21904655,0.00015391,2]
[358878331,1745512232679,-1304.21904655,0.00015391,2]
[358878332,1745512232690,-1304.21904655,0.00015391,2]
[358878333,1745512232699,-1304.21904655,0.00015391,2]
[358878334,1745512232709,-1304.21904655,0.00015391,2]
[358878335,1745512232718,-1304.21904655,0.00015391,2]
[358878336,1745512232727,-1304.21904655,0.00015391,2]
[358878337,1745512232737,-1304.21904655,0.00015391,2]
[358878338,1745512232746,-1304.21904655,0.00015391,2]
[358878339,1745512232756,-1304.21904655,0.00015391,2]
[358878340,1745512232765,-1304.21904655,0.00015391,2]
[358878341,1745512232775,-1304.21904655,0.00015391,2]
[358878342,1745512232785,-1304.21904655,0.00015391,2]
[358878343,1745512232794,-1304.21904655,0.00015391,2]
[358878344,1745512232803,-1304.21904655,0.00015391,2]
[358878345,1745512232813,-1304.21904655,0.00015391,2]
[358878346,1745512232822,-1304.21904655,0.00015391,2]
[358878347,1745512232832,-1304.21904655,0.00015391,2]
[358878348,1745512232841,-1304.21904655,0.00015391,2]
[358878349,1745512232850,-1304.21904655,0.00015391,2]
[358878350,1745512232860,-1304.21904655,0.00015391,2]
[358878351,1745512232869,-1304.21904655,0.00015391,2]
[358878352,1745512232878,-1304.21904655,0.00015391,2]
[358878353,1745512232888,-1304.21904655,0.00015391,2]
[358878354,1745512232897,-1304.21904655,0.00015391,2]
[358878355,1745512232907,-1304.21904655,0.00015391,2]
[358878356,1745512232917,-1304.21904655,0.00015391,2]
[358878357,1745512232926,-1304.21904655,0.00015391,2]
[358878358,1745512232936,-1304.21904655,0.00015391,2]
[358878359,1745512232945,-1304.21904655,0.00015391,2]
[358878360,1745512232954,-1304.21904655,0.00015391,2]
[358878361,1745512232963,-1291.17685608,0.00015391,2]
[358878362,1745512232973,-1291.17685608,0.00015391,2]
[358878363,1745512232983,-1291.17685608,0.00015391,2]
[358878364,1745512232992,-1291.17685608,0.00015391,2]
[358878365,1745512233001,-1291.17685608,0.00015391,2]
[358878366,1745512233011,-1291.17685608,0.00015391,2]
[358878367,1745512233020,-1291.17685608,0.00015391,2]
[358878368,1745512233034,-1291.17685608,0.00015391,2]
[358878369,1745512233043,-1291.17685608,0.00015391,2]
[358878370,1745512233053,-1291.17685608,0.00015391,2]
[358878371,1745512233062,-1291.17685608,0.00015391,2]
[358878372,1745512233072,-1291.17685608,0.00015391,2]
[358878373,1745512233081,-1291.17685608,0.00015391,2]
[358878374,1745512233090,-1291.17685608,0.00015391,2]
[358878375,1745512233101,-1291.17685608,0.00015391,2]
[358878376,1745512233110,-1291.17685608,0.00015391,2]
[358878377,1745512233120,-1291.17685608,0.00015391,2]
[358878378,1745512233131,-1291.17685608,0.00015391,2]
[358878379,1745512233143,-1291.17685608,0.00015391,2]
[358878380,1745512233152,-1291.17685608,0.00015391,2]
[358878381,1745512233162,-1291.17685608,0.00015391,2]
[358878382,1745512233172,-1291.17685608,0.00015391,2]
[358878383,1745512233181,-1291.17685608,0.00015391,2]
[358878384,1745512233192,-1291.17685608,0.00015391,2]
[358878385,1745512233201,-1291.17685608,0.00015391,2]
[358878386,1745512233212,-1291.17685608,0.00015391,2]
[358878387,1745512233221,-1291.17685608,0.00015391,2]
[358878388,1745512233231,-1291.17685608,0.00015391,2]
[358878389,1745512233241,-1291.17685608,0.00015391,2]
[358878390,1745512233250,-1291.17685608,0.00015391,2]
[358878391,1745512233259,-500.0,0.00015391,2]
[358878392,1745512233268,-259.245245,0.00015413,2]
[358878393,1745512233279,-500.0,0.000155,2]
[358878394,1745512233289,-500.0,0.000155,2]
[358878395,1745512233299,-500.0,0.000155,2]
[358878396,1745512233308,-556.61160428,0.000155,2]
[358878397,1745512233317,-500.0,0.000155,2]
[358878398,1745512233327,-500.0,0.000155,2]
[358878399,1745512233337,-610.83560204,0.000155,2]
[358878400,1745512233346,-500.0,0.000155,2]
[358878401,1745512233355,-500.0,0.000156,2]
[358878402,1745512233365,-284.30292155,0.000156,2]
[358878403,1745512233375,-1229.98538225,0.00015698,2]
[358878404,1745512233384,-194.267952,0.00015782,2]
[358878405,1745512233394,-250.0,0.00015799,2]
[358878406,1745512233403,-164.52649222,0.00015799,7]
[358878407,1745512233413,-2879.16911349,0.00015799,2]
[358878408,1745512233423,-507.68983846,0.000158,2]
[358878409,1745512233432,-488.86161983,0.000158,2]
[358878410,1745512233441,-1000.0,0.00015899,2]
[358878411,1745512233451,-638.00912156,0.00015899,2]
[358878412,1745512233462,-5000.0,0.00016,2]
[358878413,1745512233471,-1179.81807569,0.00016,2]
[358878414,1745512233480,-198.3248875,0.00016575,2]
[358878415,1745512233489,-1000.0,0.0001801,5]
[358878416,1745512233500,-193.11665408,0.00018528,2]
[358878417,1745512233510,-30644.0,0.000186,2]
[358878418,1745512233519,-800.0,0.00018628,2]
[358878419,1745512233529,-19532.62261999,0.000187,2]
[358878420,1745512238050,-197.88926399,0.0001539,2]
[358878421,1745512238060,-377.24496399,0.0001539,2]
[358878422,1745512238069,-350467.37738001,0.000187,2]
[358878423,1745512238079,-193.11665407,0.000188,2]
[358878424,1745512238088,-840.0731918,0.00018872,2]
[358878425,1745512238097,-160.0,0.00018872,2]
[358878426,1745512238106,-12576.49486522,0.00018872,2]
[358878428,1745512238116,-160.0,0.00018872,2]
[358878429,1745512238125,-160.0,0.00018872,2]
[358878430,1745512238137,-420.89490186,0.00018872,2]
[358878431,1745512238148,-160.0,0.00018872,2]
[358878432,1745512238160,-160.0,0.00018872,2]
[358878433,1745512238171,-502.77104746,0.00018873,2]
[358878434,1745512238183,-160.0,0.000189,2]
[358878435,1745512238192,-401876.43313874,0.000189,2]
[358878436,1745512238206,-1463.6,0.000189,2]
[358878437,1745512238223,-6697.3902513,0.000189,2]
[358878438,1745512238235,-325.20429458,0.000189,2]
[358878617,1745512240311,-576.16426889,0.000189,2]
[358878768,1745512243161,-1549.36214602,0.000189,2]
[358878769,1745512243174,-1264.75967926,0.000189,2]
[358878805,1745512312696,-322.1137983,0.0001523,2]
[358878806,1745512316483,-200.0,0.0001523,2]
[358878807,1745512321874,-238.82336546,0.0001523,2]
[358878809,1745512324407,-438.82336546,0.0001523,2]
[358878810,1745512328167,-353.67846631,0.0001523,2]
[358878811,1745512344733,1525.1836475,0.0001461,2]
[358878812,1745512664575,-342.91984354,0.00015185,2]
[358878813,1745512667232,-157.08015646,0.00015185,2]
[358878814,1745512670988,-297.39411755,0.00015185,2]
[358878815,1745512677625,-162.6607292,0.00015185,2]
[358878816,1745513052933,-493.98904282,0.00015181,2]
[358878817,1745513057651,-183.77711669,0.00015181,2]
[358878818,1745513060439,-162.28183137,0.00015181,2]
[358878820,1745513246115,-352.95751756,0.00015178,2]
[358878821,1745513251765,-382.08447446,0.00015178,2]
[358878822,1745513277003,-300.0,0.00015179,2]
[358878823,1745513281372,-229.05306563,0.00015179,2]
[358878824,1745513284813,-463.11831083,0.00015179,2]
[358878825,1745513299640,-7.82862354,0.00015179,2]
[358878830,1745513388995,-209.63427952,0.00015177,2]
[358878831,1745513391726,-193.0370704,0.00015177,2]
[358878839,1745513397245,-179.34730719,0.00015177,2]
[358878840,1745513403604,-152.0,0.00015177,2]
[358878841,1745513406289,-168.65269281,0.00015177,2]
[358878842,1745513411299,-478.68348908,0.00015177,2]
[358878843,1745513421608,-354.27153618,0.00015177,2]
[358878844,1745513426772,-300.0,0.00015177,2]
[358878853,1745513432172,-116.12673234,0.00015177,2]
[358878854,1745513432182,-300.0,0.00015276,2]
[358878855,1745513432192,-1200.0,0.00015276,2]
[358878856,1745513432202,-300.0,0.00015276,2]
[358878857,1745513432211,-229.05306563,0.00015277,2]
[358878858,1745513432221,-588.73201813,0.00015277,2]
[358878859,1745513432231,-239.69719572,0.00015277,2]
[358878860,1745513432241,-500.0,0.00015277,2]
[358878861,1745513432251,-500.0,0.00015277,2]
[358878862,1745513432261,-500.0,0.00015277,2]
[358878863,1745513432271,-500.0,0.00015277,2]
[358878864,1745513432280,-352.95751756,0.00015277,2]
[358878865,1745513432290,-500.0,0.00015277,2]
[358878866,1745513432299,-500.0,0.00015277,2]
[358878867,1745513432308,-584.18065458,0.00015277,2]
[358878869,1745513432318,-500.0,0.00015277,2]
[358878871,1745513432327,-500.0,0.00015277,2]
[358878873,1745513432337,-500.0,0.00015277,2]
[358878874,1745513432346,-500.0,0.00015277,2]
[358878876,1745513432356,-569.05461675,0.00015277,2]
[358878878,1745513432365,-500.0,0.00015277,2]
[358878879,1745513432375,-122.76922573,0.00015277,2]
[358878880,1745513432616,-377.23077427,0.00015277,2]
[358878881,1745513432627,-478.01143327,0.00015277,2]
[358878882,1745513432639,-21.98856673,0.00015277,2]
[358878883,1745513432649,-500.0,0.00015277,2]
[358878884,1745513432660,-500.0,0.00015277,2]
[358878885,1745513432670,-500.0,0.00015277,2]
[358878886,1745513432679,-417.2984927,0.00015277,2]
[358878887,1745513432688,-500.0,0.00015277,2]
[358878888,1745513432697,-500.0,0.00015277,2]
[358878889,1745513432707,-500.0,0.00015277,2]
[358878890,1745513432716,-500.0,0.00015277,2]
[358878891,1745513432725,-500.0,0.00015277,2]
[358878892,1745513432735,-500.0,0.00015277,2]
[358878893,1745513432744,-500.0,0.00015277,2]
[358878894,1745513432754,-500.0,0.00015277,2]
[358878895,1745513432764,-500.0,0.00015277,2]
[358878896,1745513432775,-500.0,0.00015277,2]
[358878897,1745513432785,-500.0,0.00015277,2]
[358878898,1745513432794,-500.0,0.00015277,2]
[358878899,1745513432804,-415.94300992,0.00015277,2]
[358878900,1745513432813,-500.0,0.00015277,2]
[358878901,1745513432823,-500.0,0.00015277,2]
[358878902,1745513432832,-500.0,0.00015277,2]
[358878903,1745513432841,-500.0,0.00015277,2]
[358878904,1745513432852,-500.0,0.00015277,2]
[358878905,1745513432862,-500.0,0.00015277,2]
[358878906,1745513432872,-500.0,0.00015277,2]
[358878907,1745513432882,-500.0,0.00015277,2]
[358878908,1745513432892,-500.0,0.00015277,2]
[358878909,1745513432901,-500.0,0.00015277,2]
[358878910,1745513432911,-500.0,0.00015277,2]
[358878911,1745513432920,-500.0,0.00015277,2]
[358878912,1745513432930,-500.0,0.00015277,2]
[358878913,1745513432939,-500.0,0.00015277,2]
[358878914,1745513432949,-500.0,0.00015277,2]
[358878915,1745513432959,-500.0,0.00015277,2]
[358878916,1745513432969,-500.0,0.00015277,2]
[358878917,1745513432979,-500.0,0.00015277,2]
[358878918,1745513432988,-500.0,0.00015277,2]
[358878919,1745513432998,-500.0,0.00015277,2]
[358878920,1745513433008,-500.0,0.00015277,2]
[358878921,1745513433017,-500.0,0.00015277,2]
[358878922,1745513433026,-500.0,0.00015277,2]
[358878923,1745513433036,-500.0,0.00015277,2]
[358878924,1745513433046,-500.0,0.00015277,2]
[358878925,1745513433056,-500.0,0.00015277,2]
[358878926,1745513433066,-500.0,0.00015277,2]
[358878927,1745513433076,-500.0,0.00015277,2]
[358878928,1745513433086,-421.15476503,0.00015277,2]
[358878929,1745513433097,-500.0,0.00015277,2]
[358878930,1745513433106,-500.0,0.00015277,2]
[358878931,1745513433117,-500.0,0.00015277,2]
[358878932,1745513433127,-500.0,0.00015277,2]
[358878933,1745513433137,-500.0,0.00015277,2]
[358878934,1745513433147,-500.0,0.00015277,2]
[358878935,1745513433157,-500.0,0.00015277,2]
[358878936,1745513433167,-500.0,0.00015277,2]
[358878937,1745513433178,-500.0,0.00015277,2]
[358878938,1745513433187,-500.0,0.00015277,2]
[358878939,1745513433197,-539.17265342,0.00015277,2]
[358878940,1745513433207,-688.4012174,0.00015277,2]
[358878941,1745513433217,-688.4012174,0.00015277,2]
[358878942,1745513433227,-688.4012174,0.00015277,2]
[358878943,1745513433237,-688.4012174,0.00015277,2]
[358878944,1745513433246,-688.4012174,0.00015277,2]
[358878945,1745513433256,-688.4012174,0.00015277,2]
[358878946,1745513433265,-688.4012174,0.00015277,2]
[358878947,1745513433275,-688.4012174,0.00015277,2]
[358878948,1745513433284,-688.4012174,0.00015277,2]
[358878949,1745513433294,-688.4012174,0.00015277,2]
[358878950,1745513433303,-688.4012174,0.00015277,2]
[358878951,1745513433313,-688.4012174,0.00015277,2]
[358878952,1745513433323,-688.4012174,0.00015277,2]
[358878953,1745513433332,-688.4012174,0.00015277,2]
[358878954,1745513433341,-688.4012174,0.00015277,2]
[358878955,1745513433351,-688.4012174,0.00015277,2]
[358878956,1745513433360,-688.4012174,0.00015277,2]
[358878957,1745513433370,-688.4012174,0.00015277,2]
[358878958,1745513433380,-688.4012174,0.00015277,2]
[358878959,1745513433389,-688.4012174,0.00015277,2]
[358878960,1745513433398,-688.4012174,0.00015277,2]
[358878961,1745513433408,-688.4012174,0.00015277,2]
[358878962,1745513433418,-688.4012174,0.00015277,2]
[358878963,1745513433427,-688.4012174,0.00015277,2]
[358878964,1745513433446,-688.4012174,0.00015277,2]
[358878965,1745513433458,-688.4012174,0.00015277,2]
[358878966,1745513433468,-688.4012174,0.00015277,2]
[358878967,1745513433478,-688.4012174,0.00015277,2]
[358878968,1745513433487,-688.4012174,0.00015277,2]
[358878969,1745513433498,-688.4012174,0.00015277,2]
[358878970,1745513433507,-688.4012174,0.00015277,2]
[358878971,1745513433518,-688.4012174,0.00015277,2]
[358878972,1745513433531,-688.4012174,0.00015277,2]
[358878973,1745513433541,-688.4012174,0.00015277,2]
[358878974,1745513433551,-688.4012174,0.00015277,2]
[358878975,1745513433562,-688.4012174,0.00015277,2]
[358878976,1745513433572,-688.4012174,0.00015277,2]
[358878977,1745513433583,-688.4012174,0.00015277,2]
[358878978,1745513433593,-691.46077837,0.00015277,2]
[358878979,1745513433605,-691.46077837,0.00015277,2]
[358878980,1745513433616,-691.46077837,0.00015277,2]
[358878981,1745513433626,-691.46077837,0.00015277,2]
[358878982,1745513433636,-691.46077837,0.00015277,2]
[358878983,1745513433646,-691.46077837,0.00015277,2]
[358878984,1745513433656,-691.46077837,0.00015277,2]
[358878985,1745513433666,-691.46077837,0.00015277,2]
[358878986,1745513433677,-691.46077837,0.00015277,2]
[358878987,1745513433686,-567.97976009,0.00015277,2]
[358878988,1745513433696,-502.05283,0.000153,2]
[358878989,1745513433706,-500.0,0.000153,2]
[358878990,1745513433716,-402.91626145,0.000153,2]
[358878991,1745513433726,-500.0,0.000153,2]
[358878992,1745513433736,-500.0,0.000153,2]
[358878993,1745513433745,-509.62149181,0.000153,2]
[358878994,1745513433755,-500.0,0.000153,2]
[358878995,1745513433764,-505.18792042,0.000153,2]
[358878996,1745513433986,-413.9774254,0.00015824,2]
[358878997,1745513433996,-420.0,0.00016714,2]
[358878998,1745513434005,-24900.0,0.00016818,2]
[358878999,1745513434015,-2055.0884803,0.00016844,2]
[358879000,1745513434024,-7288.3373848,0.00016917,2]
[358879001,1745513434034,-259.2452458,0.00016918,2]
[358879002,1745513434044,-165.01155584,0.00017408,2]
[358879003,1745513434053,-162.0252337,0.00017876,2]
[358879004,1745513434063,-216.5485052,0.00018004,5]
[358879005,1745513434072,-800.0,0.00018628,2]
[358879006,1745513434082,-349.5858933,0.00018641,2]
[358879007,1745513434091,-349.5858935,0.00018641,2]
[358879008,1745513434101,-1133.3010594,0.000187,2]
[358879009,1745513434110,-314.500439,0.000187,2]
[358879010,1745513434119,-566.6505297,0.000187,2]
[358879011,1745513434129,-157.2502195,0.000187,2]
[358879012,1745513434139,-195.90852493,0.00018772,2]
[358879013,1745513434149,-840.0731918,0.00018793,2]
[358879014,1745513434160,-160.0,0.00018793,2]
[358879015,1745513434170,-12576.49486522,0.00018793,2]
[358879016,1745513434179,-160.0,0.00018793,2]
[358879017,1745513434189,-160.0,0.00018793,2]
[358879018,1745513434199,-160.0,0.00018793,2]
[358879019,1745513434209,-160.0,0.00018793,2]
[358879020,1745513434219,-420.89490186,0.00018793,2]
[358879021,1745513434229,-11491.34393306,0.000188,2]
[358879022,1745513434239,-43126.35310295,0.000188,2]
[358879023,1745513434259,-1035.5,0.000188,2]
[358879024,1745513434271,-510.9,0.000188,2]